bitfinex/quotes_SOLUSD_20241209
["timestamp","ask_amount","ask_price","bid_price","bid_amount"]
[1733730113499,7.30420963,231.03,230.91,10.37943835]
[1733730114511,7.30420963,231.03,230.9,10.37943835]
[1733730114804,7.30420963,231.03,230.87,0.3204975]
[1733730115108,7.30420963,231.03,230.9,10.37943835]
[1733730115708,7.30420963,231.03,230.89,10.37943835]
[1733730116082,7.30420963,231.03,230.9,10.37943835]
[1733730116911,7.30420963,231.03,230.89,10.37943835]
[1733730118076,7.30420963,231.03,230.9,10.37943835]
[1733730118379,7.30420963,231.03,230.89,10.37943835]
[1733730118992,7.30420963,231.03,230.88,10.37943835]
[1733730119191,7.30420963,231.03,230.87,10.37943835]
[1733730119505,7.30420963,231.03,230.84,20.0]
[1733730119506,7.30420963,231.03,230.89,10.37943835]
[1733730120236,7.30420963,231.03,230.9,10.37943835]
[1733730120519,7.30420963,231.03,230.91,10.37943835]
[1733730121414,7.30420963,231.03,230.94,10.37943835]
[1733730121725,7.30420963,231.03,230.93,10.37943835]
[1733730122696,7.30420963,231.03,230.94,10.37943835]
[1733730122922,6.4924,231.03,230.95,10.37943835]
[1733730123122,6.4924,231.03,230.97,10.37943835]
[1733730123322,6.4924,231.03,230.96,10.37943835]
[1733730123553,6.4924,231.07,230.98,10.37943835]
[1733730123725,0.81158191,231.06,230.98,10.37943835]
[1733730123904,0.81158191,231.06,230.97,10.37943835]
[1733730124103,11.92028087,231.09,230.97,10.37943835]
[1733730124428,0.49159316,231.08,230.98,10.37943835]
[1733730124606,0.49159316,231.08,230.92,20.0]
[1733730124818,0.49159316,231.08,230.99,10.37943835]
[1733730125242,0.49159316,231.08,230.98,10.37943835]
[1733730126427,0.49159316,231.08,231.0,10.37943835]
[1733730126630,0.49159316,231.08,230.99,10.37943835]
[1733730127441,0.49159316,231.08,231.0,10.37943835]
[1733730128357,0.49159316,231.08,230.98,10.37943835]
[1733730128736,0.49159316,231.08,230.99,10.37943835]
[1733730129438,16.5481,231.2,231.04,10.37943835]
[1733730129637,0.49159316,231.19,231.03,10.37943835]
[1733730129845,5.427881,231.17,231.03,10.37943835]
[1733730130055,0.49159316,231.16,231.04,10.37943835]
[1733730130422,2.26832994,231.19,231.04,10.37943835]
[1733730130629,2.26832994,231.19,231.05,10.37943835]
[1733730130871,0.49159316,231.19,231.05,10.37943835]
[1733730131230,0.49159316,231.19,231.08,10.37943835]
[1733730131730,0.49159316,231.19,231.04,0.64900136]
[1733730131926,0.49159316,231.19,231.06,10.37943835]
[1733730132635,0.49159316,231.19,231.01,0.64900348]
[1733730132957,0.49159316,231.19,231.03,10.37943835]
[1733730133159,20.0,231.17,231.05,10.37943835]
[1733730133330,0.49159316,231.16,231.05,10.37943835]
[1733730134965,0.49159316,231.19,231.08,10.37943835]
[1733730135332,0.49159316,231.19,231.07,10.37943835]
[1733730136367,0.49159316,231.19,231.08,10.37943835]
[1733730138034,0.49159316,231.19,231.07,10.37943835]
[1733730138264,0.49159316,231.19,231.09,10.37943835]
[1733730138866,0.49159316,231.19,231.1,10.37943835]
[1733730139230,6.5481,231.2,231.1,10.37943835]
[1733730139435,0.49159316,231.19,231.05,20.64889538]
[1733730139735,0.49159316,231.19,231.05,0.64889538]
[1733730139933,0.49159316,231.19,231.1,10.37943835]
[1733730140562,0.49159316,231.19,231.11,10.37943835]
[1733730140863,0.49159316,231.19,231.1,10.37943835]
[1733730141060,0.49159316,231.19,231.11,10.37943835]
[1733730141269,0.49159316,231.19,231.1,10.37943835]
[1733730141560,0.49159316,231.19,231.03,0.64897099]
[1733730141942,20.0,231.17,230.99,1.614]
[1733730142162,0.49159316,231.13,231.05,10.37943835]
[1733730142366,0.49159316,231.16,231.08,10.37943835]
[1733730142577,0.49159316,231.16,231.07,10.37943835]
[1733730142868,6.5481,231.2,231.07,10.37943835]
[1733730142869,0.49159316,231.19,231.07,10.37943835]
[1733730144546,0.49159316,231.19,231.05,10.37943835]
[1733730144844,0.49159316,231.19,231.06,10.37943835]
[1733730145267,20.0,231.17,230.99,8.07137739]
[1733730145466,0.49159316,231.16,231.04,10.37943835]
[1733730146168,0.49159316,231.16,231.03,10.37943835]
[1733730146544,0.49159316,231.16,231.04,10.37943835]
[1733730146746,0.49159316,231.16,231.03,10.37943835]
[1733730147673,0.49159316,231.16,231.04,10.37943835]
[1733730147871,0.49159316,231.16,231.03,10.37943835]
[1733730148176,0.49159316,231.16,231.04,10.37943835]
[1733730148563,0.49159316,231.13,230.99,1.614]
[1733730148881,20.0,231.12,230.99,11.99343835]
[1733730149052,7.00039316,231.11,230.96,0.64911946]
[1733730149253,7.00039316,231.11,230.99,10.37943835]
[1733730150559,7.00039316,231.11,230.95,0.64922494]
[1733730150761,7.00039316,231.11,230.96,10.37943835]
[1733730151083,7.00039316,231.11,230.97,10.37943835]
[1733730152068,7.00039316,231.11,230.99,10.37943835]
[1733730152378,7.00039316,231.11,230.98,10.37943835]
[1733730152546,7.00039316,231.11,230.95,0.64922494]
[1733730153069,7.00039316,231.11,230.96,10.37943835]
[1733730153259,7.00039316,231.11,230.95,11.02866329]
[1733730153572,23.776884,231.1,230.95,10.37943835]
[1733730153786,0.49159316,231.09,230.95,10.37943835]
[1733730154484,20.0,231.07,230.95,10.37943835]
[1733730154651,0.49159316,231.06,230.95,10.37943835]
[1733730155352,0.49159316,231.06,230.9,0.64934392]
[1733730155551,0.49159316,231.06,230.91,10.37943835]
[1733730155552,24.26847716,231.06,230.91,10.37943835]
[1733730155754,24.26847716,231.06,230.87,8.1964]
[1733730155755,20.0,231.03,230.87,8.84583098]
[1733730156098,7.35859316,231.02,230.87,1.6558]
[1733730156250,7.35859316,231.02,230.82,7.16077314]
[1733730156251,23.776884,231.01,230.85,10.37943835]
[1733730156580,23.776884,230.97,230.82,10.37943835]
[1733730156885,0.49159316,230.96,230.82,10.37943835]
[1733730158279,0.49159316,230.97,230.82,0.64968079]
[1733730158579,0.49159316,230.97,230.86,10.37943835]
[1733730158784,0.49159316,230.97,230.85,10.37943835]
[1733730158990,0.49159316,230.97,230.81,1.6558]
[1733730159172,0.49159316,230.97,230.82,10.37943835]
[1733730159375,20.0,230.95,230.79,10.37943835]
[1733730159607,20.0,230.95,230.76,6.90883736]
[1733730159608,0.49159316,230.94,230.76,6.90883736]
[1733730159783,0.49159316,230.94,230.85,10.37943835]
[1733730159980,0.49159316,230.97,230.85,10.37943835]
[1733730160510,0.49159316,230.97,230.86,10.37943835]
[1733730160711,0.49159316,230.97,230.87,10.37943835]
[1733730160886,6.867,231.02,230.92,10.37943835]
[1733730161203,0.49159316,231.01,230.9,10.37943835]
[1733730161386,0.49159316,231.01,230.87,2.2668462]
[1733730161387,0.49159316,231.01,230.88,10.37943835]
[1733730161774,0.49159316,231.01,230.91,10.37943835]
[1733730161977,0.49159316,231.01,230.93,10.37943835]
[1733730162214,0.49159316,231.01,230.88,10.37943835]
[1733730162372,0.49159316,231.01,230.91,10.37943835]
[1733730162883,0.49159316,231.01,230.89,10.37943835]
[1733730163709,20.0,230.98,230.84,10.37943835]
[1733730163881,0.49159316,230.97,230.83,10.37943835]
[1733730164477,0.49159316,230.97,230.84,10.37943835]
[1733730165302,0.49159316,230.97,230.81,2.18067129]
[1733730165490,0.49159316,230.97,230.84,10.37943835]
[1733730165681,0.49159316,230.97,230.83,10.37943835]
[1733730165877,24.26847716,230.97,230.81,2.18067129]
[1733730166083,24.26847716,230.97,230.82,10.37943835]
[1733730166480,24.26847716,230.97,230.81,2.18067129]
[1733730166793,23.776884,230.95,230.79,30.37943835]
[1733730166989,0.49159316,230.94,230.79,30.37943835]
[1733730167188,0.49159316,230.94,230.78,10.37943835]
[1733730167390,20.0,230.92,230.77,11.02914775]
[1733730167592,0.49159316,230.91,230.78,10.37943835]
[1733730167880,0.49159316,230.91,230.79,10.37943835]
[1733730168082,0.49159316,230.91,230.81,10.37943835]
[1733730168287,0.49159316,230.94,230.83,10.37943835]
[1733730168495,0.49159316,230.94,230.84,10.37943835]
[1733730168992,0.49159316,230.94,230.82,10.37943835]
[1733730169184,0.49159316,230.94,230.81,10.37943835]
[1733730169385,0.49159316,230.95,230.81,10.37943835]
[1733730170289,0.49159316,230.95,230.82,10.37943835]
[1733730171291,0.49159316,230.95,230.82,16.22068685]
[1733730172223,0.49159316,230.95,230.83,16.22068685]
[1733730173222,0.49159316,230.95,230.84,16.22068685]
[1733730173514,0.49159316,230.95,230.83,16.22068685]
[1733730173710,0.49159316,230.95,230.82,16.22068685]
[1733730174087,0.49159316,230.95,230.79,16.22068685]
[1733730174088,24.26847716,230.95,230.79,16.22068685]
[1733730174392,20.0,230.92,230.79,16.22068685]
[1733730174593,0.49159316,230.91,230.79,16.22068685]
[1733730174805,0.49159316,230.91,230.76,0.64975737]
[1733730174806,0.49159316,230.91,230.78,16.22068685]
[1733730175200,0.49159316,230.91,230.82,16.22068685]
[1733730175410,0.49159316,230.91,230.76,16.87044422]
[1733730175411,0.49159316,230.94,230.83,16.22068685]
[1733730175993,0.49159316,230.94,230.82,16.22068685]
[1733730177619,0.49159316,230.94,230.86,16.22068685]
[1733730177815,0.49159316,230.95,230.85,16.22068685]
[1733730178317,0.49159316,230.95,230.79,0.64969445]
[1733730178318,0.49159316,230.95,230.84,16.22068685]
[1733730178814,0.49159316,230.95,230.85,16.22068685]
[1733730179017,0.49159316,230.95,230.84,16.22068685]
[1733730179214,0.49159316,230.95,230.82,16.22068685]
[1733730180216,24.26847716,230.95,230.82,16.22068685]
[1733730180415,0.49159316,230.95,230.84,16.22068685]
[1733730180896,0.49159316,230.95,230.83,16.22068685]
[1733730181217,0.49159316,230.95,230.87,16.22068685]
[1733730181390,6.6998,230.96,230.88,16.22068685]
[1733730181798,6.6998,230.96,230.87,16.22068685]
[1733730182215,0.49159316,230.95,230.87,16.22068685]
[1733730182597,0.49159316,230.95,230.86,16.22068685]
[1733730182802,0.49159316,230.95,230.84,16.22068685]
[1733730182998,0.49159316,230.95,230.85,16.22068685]
[1733730183402,0.49159316,230.95,230.84,16.22068685]
[1733730184125,0.49159316,230.95,230.81,0.64957358]
[1733730184295,0.49159316,230.95,230.84,16.22068685]
[1733730184493,0.49159316,230.95,230.83,16.22068685]
[1733730185714,0.49159316,230.95,230.85,16.22068685]
[1733730185928,6.6998,230.96,230.88,16.22068685]
[1733730186100,0.49159316,231.0,230.89,16.87019603]
[1733730186611,0.49159316,231.0,230.91,16.22068685]
[1733730187530,0.49159316,231.0,230.85,0.64946283]
[1733730187531,6.3951,231.01,230.94,16.22068685]
[1733730187722,7.40129316,231.06,230.95,16.87002137]
[1733730188026,7.40129316,231.06,230.96,16.22068685]
[1733730188207,6.9097,231.06,230.98,16.22068685]
[1733730188523,6.9097,231.06,230.89,76.3274]
[1733730188524,6.535,231.13,231.05,16.22068685]
[1733730188732,6.535,231.13,231.06,16.22068685]
[1733730188915,6.535,231.13,231.06,16.86975127]
[1733730189103,0.5183649,231.14,231.06,16.86975127]
[1733730189299,0.5183649,231.14,231.07,16.22068685]
[1733730189503,0.5183649,231.14,231.08,0.64897464]
[1733730189706,0.5183649,231.14,231.07,16.22068685]
[1733730189922,0.5183649,231.14,231.01,0.64897836]
[1733730189923,0.5183649,231.14,231.03,16.22068685]
[1733730190134,0.5183649,231.14,231.01,0.64897836]
[1733730190600,0.5183649,231.14,231.02,16.22068685]
[1733730190798,0.49159316,231.13,231.02,16.86979514]
[1733730190993,24.26847716,231.13,231.02,16.22068685]
[1733730191415,24.26847716,231.13,231.03,16.86978223]
[1733730191631,24.26847716,231.13,231.04,16.22068685]
[1733730191834,23.776884,231.13,231.06,16.22068685]
[1733730192000,0.5183649,231.14,231.06,16.22068685]
[1733730192428,0.5183649,231.14,231.08,16.22068685]
[1733730192603,0.5183649,231.14,231.09,16.86961123]
[1733730192805,0.5183649,231.14,231.11,16.22068685]
[1733730193102,0.5183649,231.14,231.12,16.22068685]
[1733730193406,0.5183649,231.14,231.11,16.22068685]
[1733730194625,0.5183649,231.14,231.1,16.22068685]
[1733730194824,0.5183649,231.14,231.11,16.22068685]
[1733730195043,0.5183649,231.14,231.09,16.86955365]
[1733730195333,0.5183649,231.14,231.08,16.22068685]
[1733730196131,0.5183649,231.14,231.07,16.22068685]
[1733730196307,0.2588249,231.14,231.06,16.22068685]
[1733730196711,0.2588249,231.14,231.09,16.22068685]
[1733730197014,0.2588249,231.14,231.1,16.22068685]
[1733730198213,0.2588249,231.14,231.11,16.86955017]
[1733730198420,0.2588249,231.14,231.11,16.22068685]
[1733730199315,0.2588249,231.14,231.12,16.86953925]
[1733730200221,0.2588249,231.14,231.13,16.22068685]
[1733730200555,0.2588249,231.14,231.13,16.86943338]
[1733730201638,0.49159316,231.31,231.13,7.07454653]
[1733730201833,0.49159316,231.31,231.19,16.22068685]
[1733730202145,0.49159316,231.34,231.17,16.22068685]
[1733730202319,0.49159316,231.34,231.16,16.22068685]
[1733730202535,5.0,231.33,231.15,16.22068685]
[1733730202737,0.6323,231.31,231.15,16.22068685]
[1733730202953,24.26847716,231.3,231.15,16.22068685]
[1733730203546,20.0,231.27,231.15,16.22068685]
[1733730203861,24.26847716,231.26,231.16,16.22068685]
[1733730205944,24.26847716,231.26,231.17,16.22068685]
[1733730206339,24.26847716,231.26,231.16,16.22068685]
[1733730206670,24.26847716,231.26,231.15,16.22068685]
[1733730206837,24.26847716,231.26,231.16,16.22068685]
[1733730207948,24.26847716,231.26,231.17,16.22068685]
[1733730208471,6.0948,231.27,231.21,16.22068685]
[1733730209034,1.12389316,231.31,231.21,16.22068685]
[1733730209939,23.776884,231.3,231.21,16.22068685]
[1733730210140,0.49159316,231.29,231.21,16.22068685]
[1733730210564,0.49159316,231.29,231.2,16.22068685]
[1733730211140,0.49159316,231.29,231.19,16.22068685]
[1733730211563,0.49159316,231.29,231.17,16.22068685]
[1733730211751,0.49159316,231.29,231.16,16.22068685]
[1733730212473,0.49159316,231.29,231.17,16.22068685]
[1733730212637,0.49159316,231.29,231.15,16.22068685]
[1733730212961,0.49159316,231.29,231.11,20.0]
[1733730212962,0.49159316,231.29,231.17,16.22068685]
[1733730214536,20.0,231.27,231.16,16.22068685]
[1733730214748,24.26847716,231.26,231.16,16.22068685]
[1733730215265,24.26847716,231.26,231.13,16.22068685]
[1733730215446,24.26847716,231.26,231.12,16.22068685]
[1733730215965,24.26847716,231.26,231.13,16.22068685]
[1733730216143,24.26847716,231.26,231.12,16.22068685]
[1733730216343,24.26847716,231.26,231.13,16.22068685]
[1733730218267,24.26847716,231.26,231.14,16.22068685]
[1733730218465,24.26847716,231.26,231.15,16.22068685]
[1733730220361,24.26847716,231.26,231.17,16.22068685]
[1733730220664,24.26847716,231.26,231.16,16.22068685]
[1733730221940,24.26847716,231.26,231.17,16.22068685]
[1733730222141,1.12389316,231.31,231.21,16.22068685]
[1733730222454,1.12389316,231.31,231.22,16.22068685]
[1733730223371,0.6323,231.31,231.24,16.22068685]
[1733730224168,0.6323,231.31,231.23,16.22068685]
[1733730225657,0.6323,231.31,231.24,16.22068685]
[1733730226073,0.6323,231.31,231.25,16.22068685]
[1733730226570,0.6323,231.31,231.24,16.22068685]
[1733730226782,6.0075,231.32,231.24,16.22068685]
[1733730227690,0.49159316,231.31,231.22,23.776884]
[1733730227974,0.49159316,231.31,231.18,16.22068685]
[1733730228946,0.49159316,231.31,231.14,16.22068685]
[1733730228947,0.6323,231.28,231.14,16.22068685]
[1733730229146,0.49159316,231.27,231.14,16.22068685]
[1733730229578,0.49159316,231.27,231.15,16.22068685]
[1733730229749,0.49159316,231.27,231.16,16.22068685]
[1733730230587,1.12389316,231.28,231.2,16.22068685]
[1733730230745,6.0075,231.32,231.24,16.22068685]
[1733730230948,6.49909316,231.32,231.24,16.22068685]
[1733730231146,6.0075,231.32,231.25,16.22068685]
[1733730231351,6.0075,231.32,231.24,16.22068685]
[1733730232085,2.21363406,231.38,231.23,16.22068685]
[1733730232250,0.49159316,231.43,231.3,16.22068685]
[1733730233651,20.0,231.41,231.27,16.22068685]
[1733730233966,0.49159316,231.4,231.28,16.86913873]
[1733730234478,0.49159316,231.4,231.29,23.776884]
[1733730235274,20.49159316,231.41,231.32,23.776884]
[1733730235974,8.45534605,231.44,231.32,23.776884]
[1733730235975,8.45534605,231.44,231.32,39.99757085]
[1733730236278,0.49159316,231.43,231.32,39.99757085]
[1733730236583,0.49159316,231.43,231.32,23.776884]
[1733730237479,0.49159316,231.43,231.31,23.776884]
[1733730237875,0.49159316,231.43,231.31,39.99757085]
[1733730238080,0.49159316,231.43,231.32,16.22068685]
[1733730238561,0.49159316,231.43,231.31,39.99757085]
[1733730239278,0.49159316,231.43,231.25,0.6482936]
[1733730239279,20.0,231.41,231.25,0.6482936]
[1733730239490,0.49159316,231.4,231.27,16.22068685]
[1733730240268,0.49159316,231.4,231.28,16.22068685]
[1733730240662,0.49159316,231.43,231.31,16.22068685]
[1733730240880,20.0,231.41,231.31,16.86897325]
[1733730241081,20.49159316,231.41,231.31,16.86897325]
[1733730241378,20.49159316,231.41,231.31,0.6482864]
[1733730241586,0.49159316,231.4,231.3,39.99757085]
[1733730241759,0.49159316,231.4,231.31,16.22068685]
[1733730242667,0.49159316,231.4,231.28,16.22068685]
[1733730243064,0.49159316,231.4,231.3,16.22068685]
[1733730243272,0.49159316,231.4,231.31,16.22068685]
[1733730243489,0.49159316,231.4,231.3,16.22068685]
[1733730244057,0.49159316,231.4,231.31,16.22068685]
[1733730244387,0.49159316,231.43,231.32,0.64828366]
[1733730244680,0.49159316,231.43,231.33,16.22068685]
[1733730245002,0.49159316,231.43,231.32,16.86897051]
[1733730245165,0.49159316,231.43,231.32,16.22068685]
[1733730246955,0.49159316,231.43,231.34,16.22068685]
[1733730247159,0.49159316,231.57,231.36,56.2182577]
[1733730247892,1.73078213,231.56,231.36,56.2182577]
[1733730248094,0.49159316,231.55,231.36,56.2182577]
[1733730248884,1.70481691,231.57,231.36,56.2182577]
[1733730249071,0.49159316,231.56,231.36,56.2182577]
[1733730249677,20.49159316,231.56,231.36,56.2182577]
[1733730249984,20.49159316,231.56,231.36,23.776884]
[1733730250170,20.49159316,231.56,231.36,56.2182577]
[1733730250560,20.49159316,231.56,231.36,39.99757085]
[1733730250778,0.6323,231.5,231.36,39.99757085]
[1733730251096,0.49159316,231.49,231.36,39.99757085]
[1733730251664,6.50069316,231.49,231.36,39.99757085]
[1733730254293,6.50069316,231.49,231.36,56.2182577]
[1733730255183,6.0091,231.49,231.36,56.2182577]
[1733730256989,7.2686,231.55,231.37,34.582084]
[1733730257198,7.2686,231.55,231.47,16.22068685]
[1733730257692,7.2686,231.55,231.49,16.22068685]
[1733730257892,7.2686,231.55,231.5,16.22068685]
[1733730258108,7.2686,231.55,231.49,16.22068685]
[1733730260273,8.00445806,231.6,231.5,16.22068685]
[1733730260595,8.00445806,231.6,231.49,16.22068685]
[1733730262508,8.17445806,231.6,231.49,16.22068685]
[1733730262797,8.17445806,231.6,231.47,16.22068685]
[1733730263187,20.0,231.57,231.45,16.22068685]
[1733730263374,0.49159316,231.56,231.45,16.22068685]
[1733730263574,0.49159316,231.56,231.39,0.64792986]
[1733730263980,0.49159316,231.56,231.42,16.22068685]
[1733730264794,0.49159316,231.56,231.41,16.22068685]
[1733730265005,0.49159316,231.56,231.4,16.22068685]
[1733730265605,0.49159316,231.56,231.36,0.64804746]
[1733730265606,0.49159316,231.56,231.41,16.22068685]
[1733730265974,0.49159316,231.56,231.45,16.22068685]
[1733730266221,0.49159316,231.56,231.46,16.22068685]
[1733730267012,0.49159316,231.56,231.45,16.22068685]
[1733730267303,0.49159316,231.56,231.44,16.22068685]
[1733730267504,0.49159316,231.56,231.45,16.22068685]
[1733730268707,0.49159316,231.56,231.42,0.64792741]
[1733730268708,0.49159316,231.56,231.43,23.776884]
[1733730268890,20.49159316,231.56,231.41,16.22068685]
[1733730269078,20.49159316,231.56,231.42,16.22068685]
[1733730269487,20.49159316,231.56,231.43,16.22068685]
[1733730269689,20.49159316,231.56,231.42,16.22068685]
[1733730271003,0.49159316,231.56,231.44,16.22068685]
[1733730271198,0.49159316,231.56,231.46,16.22068685]
[1733730271502,0.49159316,231.59,231.46,16.22068685]
[1733730272224,0.49159316,231.59,231.45,16.22068685]
[1733730272392,0.49159316,231.59,231.4,0.6480201]
[1733730272393,20.0,231.57,231.42,16.22068685]
[1733730272598,0.49159316,231.56,231.42,16.22068685]
[1733730272794,20.49159316,231.56,231.43,16.22068685]
[1733730273220,20.49159316,231.56,231.42,16.22068685]
[1733730273523,20.49159316,231.56,231.43,16.22068685]
[1733730275411,0.49159316,231.56,231.44,16.22068685]
[1733730276296,0.49159316,231.56,231.43,16.22068685]
[1733730276710,20.0,231.55,231.39,16.22068685]
[1733730276905,0.49159316,231.54,231.4,16.22068685]
[1733730277526,0.49159316,231.54,231.41,16.22068685]
[1733730278413,0.49159316,231.54,231.4,16.22068685]
[1733730278801,20.0,231.5,231.34,16.22068685]
[1733730279099,0.49159316,231.49,231.34,16.22068685]
[1733730280006,0.49159316,231.49,231.32,16.22068685]
[1733730280837,0.49159316,231.49,231.31,16.22068685]
[1733730281134,20.0,231.45,231.29,16.22068685]
[1733730281336,0.49159316,231.44,231.29,16.22068685]
[1733730282811,0.49159316,231.44,231.33,16.22068685]
[1733730283001,0.49159316,231.44,231.31,16.22068685]
[1733730283330,20.0,231.4,231.25,16.22068685]
[1733730283518,0.49159316,231.39,231.25,16.22068685]
[1733730283715,0.49159316,231.39,231.27,16.22068685]
[1733730283938,0.49159316,231.39,231.26,16.86914792]
[1733730285407,0.49159316,231.39,231.27,16.22068685]
[1733730285910,0.49159316,231.39,231.29,16.22068685]
[1733730286110,0.49159316,231.39,231.29,23.776884]
[1733730286523,0.49159316,231.39,231.29,39.99757085]
[1733730286833,6.6625,231.43,231.34,16.22068685]
[1733730287007,6.6625,231.43,231.37,16.22068685]
[1733730287207,7.2618,231.49,231.37,16.22068685]
[1733730287403,0.49159316,231.48,231.37,16.22068685]
[1733730287630,0.49159316,231.48,231.38,16.22068685]
[1733730288007,0.49159316,231.48,231.39,16.22068685]
[1733730288208,0.49159316,231.48,231.4,16.22068685]
[1733730288637,0.49159316,231.48,231.38,16.22068685]
[1733730289439,0.49159316,231.48,231.37,16.22068685]
[1733730289606,0.49159316,231.48,231.36,16.22068685]
[1733730289805,20.0,231.46,231.36,16.22068685]
[1733730290039,0.49159316,231.45,231.36,16.22068685]
[1733730291037,20.0,231.46,231.37,16.22068685]
[1733730291230,0.49159316,231.45,231.37,16.22068685]
[1733730291905,20.0,231.46,231.37,16.22068685]
[1733730292419,0.49159316,231.48,231.38,16.22068685]
[1733730292737,0.49159316,231.48,231.39,16.22068685]
[1733730292936,0.49159316,231.48,231.41,16.22068685]
[1733730293412,0.49159316,231.48,231.4,16.22068685]
[1733730293922,7.2618,231.49,231.43,16.22068685]
[1733730294123,0.6323,231.49,231.43,16.22068685]
[1733730294340,0.49159316,231.53,231.43,16.22068685]
[1733730296282,0.49159316,231.53,231.44,16.22068685]
[1733730297428,0.49159316,231.53,231.43,16.22068685]
[1733730299541,0.49159316,231.53,231.39,0.64795942]
[1733730299542,0.49159316,231.53,231.44,16.22068685]
[1733730299746,0.49159316,231.53,231.45,16.22068685]
[1733730300042,0.49159316,231.53,231.44,16.22068685]
[1733730300219,0.5183649,231.6,231.52,16.22068685]
[1733730300418,0.5183649,231.6,231.57,16.22068685]
[1733730300923,0.5183649,231.6,231.53,24.42455492]
[1733730301121,0.5183649,231.6,231.53,0.64767092]
[1733730301448,0.5183649,231.6,231.49,16.22068685]
[1733730301617,0.5183649,231.6,231.5,16.22068685]
[1733730302145,0.5183649,231.6,231.52,16.22068685]
[1733730302344,0.5183649,231.6,231.53,16.22068685]
[1733730302537,0.5183649,231.6,231.53,16.86838922]
[1733730302842,0.5183649,231.6,231.54,23.776884]
[1733730303776,0.5183649,231.6,231.54,39.99757085]
[1733730304154,0.5183649,231.6,231.58,16.22068685]
[1733730304647,0.5183649,231.6,231.55,0.64762176]
[1733730304648,0.5183649,231.6,231.57,16.22068685]
[1733730305660,0.5183649,231.6,231.58,40.64517139]
[1733730305947,0.5183649,231.6,231.59,16.22068685]
[1733730306246,0.5183649,231.6,231.59,39.99757085]
[1733730306741,0.5183649,231.6,231.59,40.64503191]
[1733730307737,0.5183649,231.6,231.59,39.99757085]
[1733730309342,0.5183649,231.6,231.58,16.22068685]
[1733730309751,0.5183649,231.6,231.57,16.22068685]
[1733730310272,0.5183649,231.6,231.59,16.22068685]
[1733730310766,0.5183649,231.6,231.58,16.8682161]
[1733730312238,0.5183649,231.6,231.58,0.64752925]
[1733730313263,0.5183649,231.6,231.53,16.22068685]
[1733730313469,0.5183649,231.6,231.54,0.64759434]
[1733730313636,0.5183649,231.6,231.54,16.86828119]
[1733730314370,0.5183649,231.6,231.54,0.64759434]
[1733730314542,0.5183649,231.6,231.59,39.99757085]
[1733730314959,0.5183649,231.6,231.59,16.22068685]
[1733730315679,0.5183649,231.6,231.57,16.22068685]
[1733730315977,0.5183649,231.6,231.56,16.22068685]
[1733730316559,0.5183649,231.6,231.59,16.22068685]
[1733730316854,0.5183649,231.6,231.57,16.86824306]
[1733730317682,0.5183649,231.6,231.58,23.776884]
[1733730317868,0.5183649,231.6,231.57,16.86824306]
[1733730318068,0.5183649,231.6,231.5,70.0]
[1733730318069,0.5183649,231.6,231.55,16.22068685]
[1733730318273,0.5183649,231.6,231.56,0.64755288]
[1733730318472,0.5183649,231.6,231.53,16.22068685]
[1733730318795,0.5183649,231.6,231.54,0.64762377]
[1733730319369,0.5183649,231.6,231.57,16.22068685]
[1733730319685,0.5183649,231.6,231.58,0.64751557]
[1733730320073,0.5183649,231.6,231.58,16.86820242]
[1733730320589,0.5183649,231.6,231.58,0.64751557]
[1733730321663,0.5183649,231.6,231.58,16.86820242]
[1733730321988,0.5183649,231.6,231.59,39.99757085]
[1733730322287,0.5183649,231.6,231.59,40.64499337]
[1733730322590,0.5183649,231.6,231.59,24.42430652]
[1733730322793,0.5183649,231.6,231.57,16.22068685]
[1733730322959,0.5183649,231.6,231.54,0.64744413]
[1733730322960,0.5183649,231.6,231.55,39.99757085]
[1733730323295,0.5183649,231.6,231.56,0.64756894]
[1733730324165,0.5183649,231.6,231.57,16.22068685]
[1733730324496,0.5183649,231.6,231.59,23.776884]
[1733730325097,0.5183649,231.6,231.56,23.776884]
[1733730325272,0.5183649,231.6,231.56,0.64755332]
[1733730325467,0.5183649,231.6,231.56,16.86824017]
[1733730325868,0.5183649,231.6,231.56,0.64755332]
[1733730326082,0.5183649,231.6,231.52,16.22068685]
[1733730326399,0.5183649,231.6,231.5,16.86832181]
[1733730326900,0.5183649,231.6,231.5,0.64763496]
[1733730327096,0.5183649,231.6,231.47,16.22068685]
[1733730327399,0.6883649,231.6,231.48,16.86845184]
[1733730327590,0.6883649,231.6,231.49,16.22068685]
[1733730327765,0.6883649,231.6,231.5,0.64774877]
[1733730330470,20.49159316,231.59,231.45,16.22068685]
[1733730330798,20.49159316,231.59,231.46,0.64783408]
[1733730332799,20.49159316,231.59,231.44,0.64782457]
[1733730333289,20.49159316,231.59,231.45,16.22068685]
[1733730333491,20.49159316,231.59,231.46,0.64785965]
[1733730334796,0.6323,231.58,231.44,0.64790426]
[1733730335004,0.49159316,231.57,231.42,0.64797395]
[1733730335993,6.1501,231.56,231.42,0.64797395]
[1733730336203,0.49159316,231.55,231.42,0.64797395]
[1733730336373,0.49159316,231.55,231.4,23.776884]
[1733730336703,0.49159316,231.55,231.41,0.64798658]